Workbook

Sheet Лист1
A1: сс | F1: Утвердил: | G1: должность | H1: директор
A2: Типовое примерное меню приготавливаемых блюд | G2: фамилия | H2: Абдульминов Р.Р.
A3: Возрастная категория | E3: 7-11 лет | G3: дата | H3: 1 | I3: 3 | J3: 2024
H4: день | I4: месяц | J4: год
A5: Неделя | B5: День недели | C5: Прием пищи | D5: Раздел меню | E5: Блюда | F5: Вес блюда, г | G5: Белки | H5: Жиры | I5: Углеводы | J5: Калорийность | K5: № рецептуры | L5: Цена
A6: 1 | B6: 1 | C6: Завтрак | D6: гор.блюдо | E6: Плов из птицы | F6: 200 | G6: 16 | H6: 19 | I6: 35 | J6: 358 | K6: 291
D7: закуска | E7: Огурцы соленые | F7: 50 | G7: 0 | H7: 1 | I7: 1 | J7: 5 | K7: 70
D8: гор.напиток | E8: Компот из сухофруктов | F8: 200 | G8: 1 | H8: 2 | I8: 23 | J8: 133 | K8: 349
D9: хлеб | E9: пшеничный | F9: 30 | G9: 2 | H9: 0 | I9: 12 | J9: 71
D10: фрукты | E10: Яблоко | F10: 100 | G10: 0 | H10: 0 | I10: 10 | J10: 47 | K10: 338
D11: хлеб | E11: сельский | F11: 20 | G11: 1 | H11: 0 | I11: 9 | J11: 44
D13: итого | F13: =SUM(F6:F12) -> 600 | G13: =SUM(G6:G12) -> 20.75 | H13: 21.79 | I13: 89.424 | J13: 657.45 | L13: =SUM(L6:L12) -> 0
A14: =A6 -> 1 | B14: =B6 -> 1 | C14: Обед | D14: закуска
D15: 1 блюдо
D16: 2 блюдо
D17: гарнир
D18: напиток
D19: хлеб бел.
D20: хлеб черн.
D23: итого | F23: =SUM(F14:F22) -> 0 | G23: =SUM(G14:G22) -> 0 | H23: 0 | I23: 0 | J23: 0 | L23: =SUM(L14:L22) -> 0
A24: =A6 -> 1 | B24: =B6 -> 1 | C24: Итого за день: | F24: =F13+F23 -> 600 | G24: =G13+G23 -> 20.75 | H24: 21.79 | I24: 89.424 | J24: 657.45 | L24: =L13+L23 -> 0
A25: 1 | B25: 2 | C25: Завтрак | D25: гор.блюдо | E25: Тефтели говяжьи с соусом | F25: 90 | G25: 11 | H25: 11 | I25: 8 | J25: 155 | K25: 279
D26: гор.блюдо | E26: Макароны отварные с маслом | F26: 155 | G26: 6 | H26: 9 | I26: 30 | J26: 185 | K26: 203
D27: закуска | E27: Салат из свеклы отварной | F27: 60 | G27: 1 | H27: 2 | I27: 5 | J27: 55 | K27: 52
D28: гор.напиток | E28: кисель | F28: 200 | G28: 0 | H28: 0 | I28: 15 | J28: 60 | K28: 484
D29: хлеб | E29: пшеничный | F29: 30 | G29: 2 | H29: 0 | I29: 12 | J29: 71
D30: печенье | E30: печенье | F30: 40 | G30: 3 | H30: 4 | I30: 30 | J30: 166
D31: хлеб | E31: сельский | F31: 20 | G31: 1 | H31: 0 | I31: 9 | J31: 44
D33: итого | F33: =SUM(F25:F32) -> 595 | G33: =SUM(G25:G32) -> 23.241 | H33: 26.38 | I33: 107.73 | J33: 734.816 | L33: =SUM(L25:L32) -> 0
A34: =A25 -> 1 | B34: 2 | C34: Обед | D34: закуска
D35: 1 блюдо
D36: 2 блюдо
D37: гарнир
D38: напиток
D39: хлеб бел.
D40: хлеб черн.
D43: итого | F43: =SUM(F34:F42) -> 0 | G43: =SUM(G34:G42) -> 0 | H43: 0 | I43: 0 | J43: 0 | L43: =SUM(L34:L42) -> 0
A44: =A25 -> 1 | B44: =B25 -> 2 | C44: Итого за день: | F44: =F33+F43 -> 595 | G44: =G33+G43 -> 23.241 | H44: 26.38 | I44: 107.73 | J44: 734.816 | L44: =L33+L43 -> 0
A45: 1 | B45: 3 | C45: Завтрак | D45: гор.блюдо | E45: Рыба тушеная с соусом | F45: 90 | G45: 9.045 | H45: 10.88 | I45: 19.6 | J45: 176 | K45: 229
E46: Пюре картофельное | F46: 150 | G46: 4.77 | H46: 5.43 | I46: 38.85 | J46: 219.3 | K46: 312
D47: гор.напиток | E47: Чай черный с сахаром | F47: 208 | G47: 0.321 | H47: 0.005 | I47: 21.725 | J47: 88 | K47: 376
D48: хлеб | E48: пшеничный | F48: 30 | G48: 2 | H48: 0 | I48: 12 | J48: 71
D49: фрукты | E49: яблоко | F49: 100 | G49: 0.4 | H49: 0.4 | I49: 9.8 | J49: 47 | K49: 338
D50: хлеб | E50: сельский | F50: 20 | G50: 1 | H50: 0 | I50: 9 | J50: 44
D51: закуска | E51: салат из горошка зеленого консирвированного | F51: 60 | G51: 2 | H51: 3 | I51: 4 | J51: 50 | K51: 10
D53: итого | F53: =SUM(F45:F52) -> 658 | G53: =SUM(G45:G52) -> 19.606 | H53: 20.265 | I53: 114.485 | J53: 695.46 | L53: 0
A54: =A45 -> 1 | B54: 3 | C54: Обед | D54: закуска
D55: 1 блюдо
D56: 2 блюдо
D57: гарнир
D58: напиток
D59: хлеб бел.
D60: хлеб черн.
D63: итого | F63: =SUM(F54:F62) -> 0 | G63: =SUM(G54:G62) -> 0 | H63: 0 | I63: 0 | J63: 0 | L63: 0
A64: =A45 -> 1 | B64: =B45 -> 3 | C64: Итого за день: | F64: =F53+F63 -> 658 | G64: =G53+G63 -> 19.606 | H64: 20.265 | I64: 114.485 | J64: 695.46 | L64: 0
A65: 1 | B65: 4 | C65: Завтрак | D65: гор.блюдо | E65: Рагу из птицы | F65: 200 | G65: 16.01 | H65: 19.3 | I65: 35.414 | J65: 357.67 | K65: 289
D66: закуска | E66: икра морковная | F66: 60 | G66: 1.21 | H66: 0.06 | I66: 12.33 | J66: 54.72 | K66: 75
D67: гор.напиток | E67: Чай черный с сахаром и лимоном | F67: 215 | G67: 0.13 | H67: 0.02 | I67: 15.2 | J67: 62 | K67: 377
D68: хлеб | E68: пшеничный | F68: 30 | G68: 2 | H68: 0 | I68: 12 | J68: 71
E69: масло сливочное | F69: 10 | G69: 0 | H69: 7 | I69: 0 | J69: 66 | K69: 14
D70: хлеб | E70: сельский | F70: 20 | G70: 1 | H70: 0 | I70: 9 | J70: 44
D72: итого | F72: =SUM(F65:F71) -> 535 | G72: =SUM(G65:G71) -> 20.63 | H72: 26.82 | I72: 83.704 | J72: 655.39 | L72: 0
A73: =A65 -> 1 | B73: 4 | C73: Обед | D73: закуска
D74: 1 блюдо
D75: 2 блюдо
D76: гарнир
D77: напиток
D78: хлеб бел.
D79: хлеб черн.
D82: итого | F82: =SUM(F73:F81) -> 0 | G82: =SUM(G73:G81) -> 0 | H82: 0 | I82: 0 | J82: 0 | L82: 0
A83: =A65 -> 1 | B83: =B65 -> 4 | C83: Итого за день: | F83: =F72+F82 -> 535 | G83: =G72+G82 -> 20.63 | H83: 26.82 | I83: 83.704 | J83: 655.39 | L83: 0
A84: 1 | B84: 5 | C84: Завтрак | D84: гор.блюдо | E84: Сосиски отварные с соусом | F84: 90 | G84: 5.92 | H84: 13.4 | I84: 3.8 | J84: 145.6 | K84: 243
E85: Каша пшеничная рассыпчатая с маслом | F85: 155 | G85: 6.84 | H85: 8.01 | I85: 40.06 | J85: 260 | K85: 171
D86: гор.напиток | E86: Компот из сухофруктов | F86: 200 | G86: 1 | H86: 2 | I86: 23 | J86: 133 | K86: 349
D87: хлеб | E87: пшеничный | F87: 30 | G87: 2 | H87: 0 | I87: 12 | J87: 71
D88: закуска | E88: Винегрет овощной | F88: 60 | G88: 0.84 | H88: 6.02 | I88: 4.37 | J88: 75.06 | K88: 67
D89: хлеб | E89: сельский | F89: 20 | G89: 1 | H89: 0 | I89: 9 | J89: 44
D91: итого | F91: =SUM(F84:F90) -> 555 | G91: =SUM(G84:G90) -> 17.54 | H91: 29.37 | I91: 91.59 | J91: 728.46 | L91: 0
A92: =A84 -> 1 | B92: 5 | C92: Обед | D92: закуска
D93: 1 блюдо
D94: 2 блюдо
D95: гарнир
D96: напиток
D97: хлеб бел.
D98: хлеб черн.
D101: итого | F101: =SUM(F92:F100) -> 0 | G101: =SUM(G92:G100) -> 0 | H101: 0 | I101: 0 | J101: 0 | L101: 0
A102: =A84 -> 1 | B102: =B84 -> 5 | C102: Итого за день: | F102: =F91+F101 -> 555 | G102: =G91+G101 -> 17.54 | H102: 29.37 | I102: 91.59 | J102: 728.46 | L102: 0
A103: 1 | B103: 6 | C103: Завтрак | D103: гор.блюдо | E103: Суп картофельный с макаронными изделиями с фрикадельками говяжьими | F103: 272 | G103: 7.09 | H103: 5.42 | I103: 17.62 | J103: 161.39 | K103: 103
D104: закуска | E104: салат картофельный с зеленым горошком | F104: 60 | G104: 2 | H104: 4 | I104: 5 | J104: 60 | K104: 42
D105: гор.напиток | E105: Чай черный с сахаром | F105: 208 | G105: 0.321 | H105: 0.005 | I105: 21.725 | J105: 88 | K105: 376
D106: хлеб | E106: пшеничный | F106: 30 | G106: 2 | H106: 0 | I106: 12 | J106: 71
D107: сыр | E107: сыр | F107: 10 | G107: 2.32 | H107: 2.7 | J107: 20.8 | K107: 15
D108: хлеб | E108: сельский | F108: 20 | G108: 1 | H108: 0 | I108: 9 | J108: 44
D110: итого | F110: =SUM(F103:F109) -> 600 | G110: =SUM(G103:G109) -> 14.511 | H110: 12.345 | I110: 65.085 | J110: 445.19 | L110: 0
A111: =A103 -> 1 | B111: 6 | C111: Обед | D111: закуска
D112: 1 блюдо
D113: 2 блюдо
D114: гарнир
D115: напиток
D116: хлеб бел.
D117: хлеб черн.
D120: итого | F120: =SUM(F111:F119) -> 0 | G120: =SUM(G111:G119) -> 0 | H120: 0 | I120: 0 | J120: 0 | L120: 0
A121: =A103 -> 1 | B121: =B103 -> 6 | C121: Итого за день: | F121: =F110+F120 -> 600 | G121: =G110+G120 -> 14.511 | H121: 12.345 | I121: 65.085 | J121: 445.19 | L121: 0
A122: 2 | B122: 1 | C122: Завтрак | D122: гор.блюдо | E122: куриная грудка тушеная в соусе | F122: 100 | G122: 10.44 | H122: 14.25 | I122: 10.59 | J122: 197.25 | K122: 290
E123: Каша гречневая рассыпчатая | F123: 150 | G123: 8.3 | H123: 8.95 | I123: 37.37 | J123: 262.5 | K123: 171
D124: гор.напиток | E124: Компот из сухофруктов | F124: 200 | G124: 1 | H124: 2 | I124: 23 | J124: 133 | K124: 349
D125: хлеб | E125: пшеничный | F125: 30 | G125: 2 | H125: 0 | I125: 12 | J125: 71
E126: масло сливочное | F126: 10 | G126: 0 | H126: 7 | I126: 0 | J126: 66 | K126: 14
D127: хлеб | E127: сельский | F127: 20 | G127: 1 | H127: 0 | I127: 9 | J127: 44
D128: закуска | E128: икра морковная | F128: 60 | G128: 1.21 | H128: 0.06 | I128: 12.33 | J128: 54.72 | K128: 75
D130: итого | F130: =SUM(F122:F128) -> 570 | G130: =SUM(G122:G128) -> 23.89 | H130: =SUM(H122:H128) -> 32.2 | I130: =SUM(I122:I128) -> 103.65 | J130: =SUM(J122:J128) -> 828.27 | L130: =SUM(L122:L129) -> 0
A131: 2 | B131: =B122 -> 1 | C131: Обед | D131: закуска
D132: 1 блюдо
D133: 2 блюдо
D134: гарнир
D135: напиток
D136: хлеб бел.
D137: хлеб черн.
D140: итого | F140: =SUM(F131:F139) -> 0 | G140: =SUM(G131:G139) -> 0 | H140: 0 | I140: 0 | J140: 0 | L140: =SUM(L131:L139) -> 0
A141: =A122 -> 2 | B141: =B122 -> 1 | C141: Итого за день: | F141: =F130+F140 -> 570 | G141: =G130+G140 -> 23.89 | H141: 32.2 | I141: 103.65 | J141: 828.27 | L141: =L130+L140 -> 0
A142: 2 | B142: 2 | C142: Завтрак | D142: гор.блюдо | E142: Рыба, тушеная в томате с овощами | F142: 90 | G142: 8.38 | H142: 1.41 | I142: 4.1 | J142: 63.08 | K142: 299
D143: гор.блюдо | E143: Макаронные изд отвар с маслом | F143: 155 | G143: 5.55 | H143: 8.95 | I143: 29.55 | J143: 184.5 | K143: 203
D144: гор.напиток | E144: Чай черный с сахаром | F144: 208 | G144: 0.321 | H144: 0.005 | I144: 21.725 | J144: 88 | K144: 376
D145: хлеб | E145: пшеничный | F145: 30 | G145: 2 | H145: 0 | I145: 12 | J145: 71
D146: сыр | E146: Cыр | F146: 10 | G146: 2 | H146: 3 | I146: - | J146: 21 | K146: 15
D147: хлеб | E147: сельский | F147: 20 | G147: 1 | H147: 0 | I147: 9 | J147: 44
D148: закуска | E148: салат картофельный с зеленым горошком | F148: 60 | G148: 2 | H148: 4 | I148: 5 | J148: 60 | K148: 42
D149: итого | F149: =SUM(F142:F148) -> 573 | G149: =SUM(G142:G148) -> 21.351 | H149: 17.285 | I149: 81.115 | J149: 531.38 | L149: =SUM(L142:L148) -> 0
A150: =A142 -> 2 | B150: 2 | C150: Обед | D150: закуска
D151: 1 блюдо
D152: 2 блюдо
D153: гарнир
D154: напиток
D155: хлеб бел.
D156: хлеб черн.
D159: итого | F159: =SUM(F150:F158) -> 0 | G159: =SUM(G150:G158) -> 0 | H159: 0 | I159: 0 | J159: 0 | L159: =SUM(L150:L158) -> 0
A160: =A142 -> 2 | B160: =B142 -> 2 | C160: Итого за день: | F160: =F168+F159 -> 550 | G160: =G168+G159 -> 23.13 | H160: =H168+H159 -> 24.97 | I160: =I168+I159 -> 105.494 | J160: =J168+J159 -> 753.25 | L160: =L168+L159 -> 0
A161: 2 | B161: 3 | C161: Завтрак | D161: гор.блюдо | E161: Плов из птицы | F161: 200 | G161: 16 | H161: 19 | I161: 35 | J161: 358 | K161: 291
D162: закуска | E162: Салат из свеклы отварной | F162: 60 | G162: 1 | H162: 2 | I162: 5 | J162: 55 | K162: 52
D163: гор.напиток | E163: кисель | F163: 200 | G163: 0 | H163: 0 | I163: 15 | J163: 60 | K163: 484
D164: хлеб | E164: пшеничный | F164: 30 | G164: 2 | H164: 0 | I164: 12 | J164: 71
D165: печенье | E165: печенье | F165: 40 | G165: 3 | H165: 4 | I165: 30 | J165: 166
D166: хлеб | E166: сельский | F166: 20 | G166: 1 | H166: 0 | I166: 9 | J166: 44
D168: итого | F168: =SUM(F161:F167) -> 550 | G168: =SUM(G161:G167) -> 23.13 | H168: =SUM(H161:H167) -> 24.97 | I168: =SUM(I161:I167) -> 105.494 | J168: =SUM(J161:J167) -> 753.25 | L168: =SUM(L161:L167) -> 0
A169: =A161 -> 2 | B169: 3 | C169: Обед | D169: закуска
D170: 1 блюдо
D171: 2 блюдо
D172: гарнир
D173: напиток
D174: хлеб бел.
D175: хлеб черн.
D178: итого | F178: =SUM(F169:F177) -> 0 | G178: =SUM(G169:G177) -> 0 | H178: 0 | I178: 0 | J178: 0 | L178: =SUM(L169:L177) -> 0
A179: =A161 -> 2 | B179: =B161 -> 3 | C179: Итого за день: | F179: =G273+F178 -> 0 | G179: =H273+G178 -> 0 | H179: =I273+H178 -> 0 | I179: =J273+I178 -> 0 | J179: =K273+J178 -> 0 | L179: =M273+L178 -> 0
A180: 2 | B180: 4 | C180: Завтрак | D180: гор.блюдо | E180: Котлеты "школьные" с соусом | F180: 90 | G180: 13.77 | H180: 9.9 | I180: 11.97 | J180: 191.7 | K180: 347
D181: гор.блюдо | E181: Пюре картофельное | F181: 150 | G181: 4.77 | H181: 5.43 | I181: 38.85 | J181: 219.3 | K181: 312
D182: гор.напиток | E182: Чай черный с сахаром и лимоном | F182: 215 | G182: 0.13 | H182: 0.02 | I182: 15.2 | J182: 62 | K182: 377
D183: хлеб | E183: пшеничный | F183: 30 | G183: 2 | H183: 0 | I183: 12 | J183: 71
D184: фрукты | E184: яблоко | F184: 100 | G184: 0.4 | H184: 0.4 | I184: 9.8 | J184: 47 | K184: 338
D185: хлеб | E185: сельский | F185: 20 | G185: 1 | H185: 0 | I185: 9 | J185: 44
E186: масло сливочное | F186: 10 | G186: 0 | H186: 7 | I186: 0 | J186: 66 | K186: 14
D188: итого | F188: =SUM(F180:F187) -> 615 | G188: =SUM(G180:G187) -> 22.35 | H188: 23.19 | I188: 96.58 | J188: 701 | L188: =SUM(L180:L187) -> 0
A189: =A180 -> 2 | B189: =B180 -> 4 | C189: Обед | D189: закуска
D190: 1 блюдо
D191: 2 блюдо
D192: гарнир
D193: напиток
D194: хлеб бел.
D195: хлеб черн.
D198: итого | F198: =SUM(F189:F197) -> 0 | G198: =SUM(G189:G197) -> 0 | H198: 0 | I198: 0 | J198: 0 | L198: =SUM(L189:L197) -> 0
A199: =A180 -> 2 | B199: =B180 -> 4 | C199: Итого за день: | F199: =F188+F198 -> 615 | G199: =G188+G198 -> 22.35 | H199: 23.19 | I199: 96.58 | J199: 701 | L199: 0
A200: 2 | B200: 5 | C200: Завтрак | D200: гор.блюдо | E200: Сосиски отварные с соусом | F200: 90 | G200: 5.92 | H200: 13.4 | I200: 3.8 | J200: 145.6 | K200: 243
D201: гор.блюдо | E201: Макаронные изд отвар с маслом | F201: 155 | G201: 5.55 | H201: 8.95 | I201: 29.55 | J201: 184.5 | K201: 203
D202: гор.напиток | E202: Компот из сухофруктов | F202: 200 | G202: 1 | H202: 2 | I202: 23 | J202: 133 | K202: 349
D203: хлеб | E203: пшеничный | F203: 30 | G203: 2 | H203: 0 | I203: 12 | J203: 71
D204: закуска | E204: винегрет овощной | F204: 60 | G204: 1 | H204: 6 | I204: 4 | J204: 75 | K204: 67
D205: хлеб | E205: сельский | F205: 20 | G205: 1 | H205: 0 | I205: 9 | J205: 44
D207: итого | F207: =SUM(F200:F206) -> 555 | G207: =SUM(G200:G206) -> 16.25 | H207: 30.31 | I207: 81.08 | J207: 652.96 | L207: =SUM(L200:L206) -> 0
A208: =A200 -> 2 | B208: =B200 -> 5 | C208: Обед | D208: закуска
D209: 1 блюдо
D210: 2 блюдо
D211: гарнир
D212: напиток
D213: хлеб бел.
D214: хлеб черн.
D217: итого | F217: =SUM(F208:F216) -> 0 | G217: =SUM(G208:G216) -> 0 | H217: 0 | I217: 0 | J217: 0 | L217: =SUM(L208:L216) -> 0
A218: =A200 -> 2 | B218: =B200 -> 5 | C218: Итого за день: | F218: =F207+F217 -> 555 | G218: =G207+G217 -> 16.25 | H218: 30.31 | I218: 81.08 | J218: 652.96 | L218: 0
A219: 2 | B219: 6 | C219: Завтрак | D219: гор.блюдо | E219: Каша вязкая молочная рисовая с маслом | F219: 205 | G219: 15.2 | H219: 11.85 | I219: 42.95 | J219: 294 | K219: 174
D220: сыр | E220: Cыр | F220: 10 | G220: 2 | H220: 3 | I220: - | J220: 21 | K220: 15
D221: гор.напиток | E221: Чай черный с сахаром | F221: 208 | G221: 0.321 | H221: 0.005 | I221: 21.725 | J221: 88 | K221: 376
D222: хлеб | E222: пшеничный | F222: 30 | G222: 2 | H222: 0 | I222: 12 | J222: 71
D223: фрукты | E223: яблоко | F223: 100 | G223: 0.4 | H223: 0.4 | I223: 9.8 | J223: 47 | K223: 338
D224: хлеб | E224: сельский | F224: 20 | G224: 1 | H224: 0 | I224: 9 | J224: 44
D226: итого | F226: =SUM(F219:F224) -> 573 | G226: =SUM(G219:G224) -> 21.521 | H226: =SUM(H219:H224) -> 15.395 | I226: =SUM(I219:I224) -> 95.235 | J226: =SUM(J219:J224) -> 564.8 | L226: =SUM(L219:L224) -> 0
A227: =A219 -> 2 | B227: =B219 -> 6 | C227: Обед | D227: закуска
D228: 1 блюдо
D229: 2 блюдо
D230: гарнир
D231: напиток
D232: хлеб бел.
D233: хлеб черн.
... 3 more rows
